fUST/lending_fUST_20250626
["ID","MTS","AMOUNT","RATE_DAILY","PERIOD"]
[367726056,1750905039395,-501.13,0.00019449,2]
[367726059,1750905039405,-460.0,0.00019449,2]
[367726061,1750905039414,-696.49,0.00019449,2]
[367726063,1750905039424,-460.0,0.00019449,2]
[367726065,1750905039433,-460.0,0.00019449,2]
[367726067,1750905039442,-460.0,0.00019449,2]
[367726069,1750905039452,-460.0,0.00019449,2]
[367726071,1750905039461,-460.0,0.00019449,2]
[367726072,1750905039470,-743.97,0.0001945,2]
[367726074,1750905039480,-460.0,0.0001945,2]
[367726076,1750905039489,-460.0,0.0001945,2]
[367726078,1750905039501,-460.0,0.0001945,2]
[367726080,1750905039510,-460.0,0.0001945,2]
[367726082,1750905039519,-967.56,0.0001945,2]
[367726084,1750905039529,-1121.960639,0.00019502,2]
[367726086,1750905039539,-346.17472627,0.00019539,2]
[367726088,1750905039549,-565.77128007,0.00019555,2]
[367726090,1750905039558,-501.13,0.00019723,2]
[367726092,1750905039568,-460.0,0.00019723,2]
[367726094,1750905039579,-696.49,0.00019723,2]
[367726097,1750905039588,-460.0,0.00019723,2]
[367726099,1750905039597,-460.0,0.00019723,2]
[367726101,1750905039606,-460.0,0.00019723,2]
[367726103,1750905039615,-460.0,0.00019723,2]
[367726105,1750905039625,-460.0,0.00019723,2]
[367726107,1750905039634,-743.97,0.00019724,2]
[367726109,1750905039643,-460.0,0.00019724,2]
[367726111,1750905039652,-460.0,0.00019724,2]
[367726113,1750905039662,-460.0,0.00019724,2]
[367726115,1750905039672,-460.0,0.00019724,2]
[367726117,1750905039681,-967.56,0.00019724,2]
[367726119,1750905039690,-318.3879852,0.00019726,2]
[367726121,1750905039700,-291.43182908,0.00019773,2]
[367726123,1750905039709,-2000.0,0.000198,5]
[367726125,1750905039719,-2000.0,0.000198,6]
[367726127,1750905039729,-708.12,0.000198,7]
[367726129,1750905039739,-565.77128007,0.00019831,2]
[367726131,1750905039748,-500.0,0.00019873,2]
[367726133,1750905039758,-500.0,0.00019873,2]
[367726135,1750905039767,-500.0,0.00019873,2]
[367726137,1750905039777,-500.0,0.00019873,2]
[367726139,1750905039786,-194076.86357985,0.000199,7]
[367726141,1750905039795,-151.0,0.000199,2]
[367726143,1750905039804,-12560.17507789,0.000199,7]
[367726145,1750905039813,-939720.86772601,0.000199,7]
[367726147,1750905039826,-1430.0000001,0.000199,7]
[367726150,1750905039837,-308.98418316,0.000199,7]
[367726153,1750905039848,-533.92,0.000199,7]
[367728148,1750905069460,1319.0,0.00025065,60]
[367728151,1750905187385,2430.2184166,0.00015915,2]
[367728152,1750905187407,252.7574243,0.00015915,2]
[367728153,1750905508704,2700.0,0.00023,30]
[367728155,1750905837486,510.256286,0.00013699,2]
[367728156,1750906130580,19236.9862897,0.00015708,2]
[367728157,1750906130603,5663.0137103,0.00015708,2]
[367728158,1750906154947,-2246.4841545,0.00016166,2]
[367728159,1750906154976,-300.0,0.00016705,2]
[367728160,1750906154999,-300.0,0.00016706,2]
[367728161,1750906155022,-1200.0,0.00016706,2]
[367728162,1750906155045,-430.78572351,0.00016706,2]
[367728163,1750906155068,-437.83827284,0.00016706,2]
[367728164,1750906155091,-462.64977402,0.00016706,2]
[367728165,1750906155114,-460.0,0.00016706,2]
[367728166,1750906155146,-460.0,0.00016706,2]
[367728167,1750906155169,-460.0,0.00016706,2]
[367728168,1750906155195,-424.01006372,0.00016706,2]
[367728169,1750906155218,-460.0,0.00016706,2]
[367728170,1750906155241,-460.0,0.00016706,2]
[367728171,1750906155266,-460.0,0.00016706,2]
[367728172,1750906155291,-460.0,0.00016706,2]
[367728173,1750906155313,-50000.0,0.00016706,2]
[367728174,1750906155336,-553.77,0.00016707,2]
[367728175,1750906155361,-460.0,0.00016707,2]
[367728176,1750906155384,-460.0,0.00016707,2]
[367728177,1750906155408,-460.0,0.00016707,2]
[367728178,1750906155433,-460.0,0.00016707,2]
[367728179,1750906155456,-460.0,0.00016707,2]
[367728180,1750906155479,-460.0,0.00016707,2]
[367728181,1750906155502,-460.0,0.00016707,2]
[367728182,1750906155526,-460.0,0.00016707,2]
[367728183,1750906155548,-460.0,0.00016707,2]
[367728184,1750906155572,-460.0,0.00016707,2]
[367728185,1750906155594,-479.12191682,0.00016707,2]
[367728186,1750906155617,-460.0,0.00016707,2]
[367728187,1750906155640,-460.0,0.00016707,2]
[367728188,1750906155663,-460.0,0.00016707,2]
[367728189,1750906155686,-460.0,0.00016707,2]
[367728190,1750906155709,-460.0,0.00016707,2]
[367728191,1750906155733,-461.6,0.00016707,2]
[367728192,1750906155756,-460.0,0.00016707,2]
[367728193,1750906155781,-460.0,0.00016707,2]
[367728194,1750906155811,-151.8405361,0.00016707,2]
[367728195,1750906155834,-460.0,0.00016707,2]
[367728196,1750906155856,-460.0,0.00016707,2]
[367728197,1750906155879,-460.0,0.00016707,2]
[367728198,1750906155903,-460.0,0.00016707,2]
[367728199,1750906155931,-585.71,0.00016707,2]
[367728200,1750906155953,-460.0,0.00016707,2]
[367728201,1750906155976,-500.0,0.00016707,2]
[367728202,1750906155999,-460.0,0.00016707,2]
[367728203,1750906156022,-460.0,0.00016707,2]
[367728204,1750906156045,-466.5045955,0.00016707,2]
[367728205,1750906156068,-477.77015714,0.00016707,2]
[367728206,1750906156091,-460.0,0.00016707,2]
[367728207,1750906156114,-460.0,0.00016707,2]
[367728208,1750906156137,-460.0,0.00016707,2]
[367728209,1750906156159,-460.0,0.00016707,2]
[367728210,1750906156183,-469.29918788,0.00016707,2]
[367728211,1750906156207,-460.0,0.00016707,2]
[367728212,1750906156230,-460.0,0.00016707,2]
[367728213,1750906156251,-464.483031,0.00016707,2]
[367728214,1750906156273,-463.43081241,0.00016707,2]
[367728215,1750906156294,-460.0,0.00016707,2]
[367728216,1750906156315,-460.0,0.00016707,2]
[367728217,1750906156337,-460.0,0.00016707,2]
[367728218,1750906156359,-460.0,0.00016707,2]
[367728219,1750906156381,-464.84889947,0.00016707,2]
[367728220,1750906156406,-460.0,0.00016707,2]
[367728221,1750906156430,-471.26418467,0.00016707,2]
[367728222,1750906156455,-464.73055558,0.00016707,2]
[367728223,1750906156478,-464.16370565,0.00016707,2]
[367728224,1750906156500,-608.62060722,0.00016707,2]
[367728225,1750906156524,-460.0,0.00016707,2]
[367728226,1750906156552,-460.0,0.00016707,2]
[367728227,1750906156576,-475.71,0.00016707,2]
[367728228,1750906156598,-466.10308369,0.00016707,2]
[367728229,1750906156619,-460.0,0.00016707,2]
[367728230,1750906156641,-462.74371204,0.00016707,2]
[367728231,1750906156663,-467.43720755,0.00016707,2]
[367728232,1750906156686,-460.0,0.00016707,2]
[367728233,1750906156709,-460.0,0.00016707,2]
[367728234,1750906156732,-460.0,0.00016707,2]
[367728235,1750906156754,-460.0,0.00016707,2]
[367728236,1750906156780,-460.0,0.00016707,2]
[367728237,1750906156804,-465.17336213,0.00016707,2]
[367728238,1750906156828,-460.0,0.00016707,2]
[367728239,1750906156852,-460.0,0.00016707,2]
[367728240,1750906156877,-460.0,0.00016707,2]
[367728241,1750906156900,-460.0,0.00016707,2]
[367728242,1750906156926,-545.06,0.00016707,2]
[367728243,1750906156950,-460.0,0.00016707,2]
[367728244,1750906156975,-460.0,0.00016707,2]
[367728245,1750906156999,-460.0,0.00016707,2]
[367728246,1750906157022,-460.0,0.00016707,2]
[367728247,1750906157047,-460.0,0.00016707,2]
[367728248,1750906157068,-460.0,0.00016707,2]
[367728249,1750906157092,-460.0,0.00016707,2]
[367728250,1750906157117,-549.93,0.00016707,2]
[367728251,1750906157141,-460.0,0.00016707,2]
[367728252,1750906157165,-460.0,0.00016707,2]
[367728253,1750906157190,-460.0,0.00016707,2]
[367728254,1750906157215,-460.0,0.00016707,2]
[367728255,1750906157241,-245.42726476,0.00016707,2]
[367728256,1750906157266,-460.0,0.00016707,2]
[367728257,1750906157288,-483.6603897,0.00016707,2]
[367728258,1750906157309,-461.99643723,0.00016708,2]
[367728259,1750906157332,-463.30020674,0.00016708,2]
[367728260,1750906157354,-458.96690244,0.00016708,2]
[367728261,1750906157376,-460.0,0.00016708,2]
[367728262,1750906157398,-285.56525569,0.00016708,2]
[367728319,1750906232481,-244.1063477,0.00016366,2]
[367728321,1750906232491,-460.0,0.00016706,2]
[367728323,1750906232500,-460.0,0.00016706,2]
[367728325,1750906232509,-600.65,0.00016707,2]
[367728327,1750906232519,-215.77,0.00016707,2]
[367728329,1750906232527,-460.0,0.00016707,2]
[367728331,1750906232536,-266.59712036,0.00016707,2]
[367728333,1750906232546,-1200.0,0.00016707,2]
[367728335,1750906232554,-507.25,0.00016707,2]
[367728337,1750906232564,-174.43474431,0.00016708,2]
[367728339,1750906232573,-460.0,0.00016708,2]
[367728341,1750906232582,-300.0,0.00016708,2]
[367728343,1750906232591,-460.0,0.00016709,2]
[367728345,1750906232600,-460.0,0.00016709,2]
[367728347,1750906232609,-460.0,0.00016709,2]
[367728349,1750906232618,-483.78,0.00016709,2]
[367728351,1750906232628,-250.0,0.00016754,2]
[367728353,1750906232637,-460.0,0.0001698,2]
[367728355,1750906232647,-460.0,0.0001698,2]
[367728357,1750906232657,-460.0,0.00016981,2]
[367728359,1750906232666,-206.07,0.00016981,2]
[367728361,1750906232675,-342.9,0.00016981,2]
[367728363,1750906232684,-235.66,0.00016981,2]
[367728365,1750906232694,-460.0,0.00016981,2]
[367728367,1750906232704,-341.93,0.00016981,2]
[367728369,1750906232714,-460.0,0.00016981,2]
[367728371,1750906232724,-460.0,0.00016981,2]
[367728373,1750906232733,-263.78,0.00016981,2]
[367728375,1750906232742,-545.06,0.00016981,2]
[367728377,1750906232752,-460.0,0.00016981,2]
[367728379,1750906232761,-460.0,0.00016981,2]
[367728381,1750906232771,-493.41,0.00016981,2]
[367728383,1750906232780,-162.11,0.00016981,2]
[367728385,1750906232789,-290.95,0.00016981,2]
[367728387,1750906232799,-342.48,0.00016981,2]
[367728389,1750906232809,-460.0,0.00016981,2]
[367728391,1750906232818,-296.31,0.00016981,2]
[367728393,1750906232827,-603.27056455,0.00016981,2]
[367728395,1750906232836,-507.25,0.00016981,2]
[367728397,1750906232846,-460.0,0.00016982,2]
[367728399,1750906232856,-460.0,0.00016982,2]
[367728401,1750906232865,-460.0,0.00016983,2]
[367728403,1750906232874,-460.0,0.00016983,2]
[367728405,1750906232883,-460.0,0.00016983,2]
[367728407,1750906232892,-483.78,0.00016983,2]
[367728409,1750906232902,-460.0,0.00017254,2]
[367728411,1750906232911,-460.0,0.00017254,2]
[367728413,1750906232921,-460.0,0.00017255,2]
[367728415,1750906232930,-460.0,0.00017255,2]
[367728417,1750906232939,-460.0,0.00017255,2]
[367728419,1750906232948,-545.06,0.00017255,2]
[367728421,1750906232958,-482.80425209,0.00017255,2]
[367728423,1750906232967,-460.0,0.00017255,2]
[367728425,1750906232976,-460.0,0.00017255,2]
[367728427,1750906232986,-507.25,0.00017255,2]
[367728429,1750906232994,-460.0,0.00017256,2]
[367728431,1750906233003,-460.0,0.00017257,2]
[367728433,1750906233012,-460.0,0.00017257,2]
[367728435,1750906233022,-483.78,0.00017257,2]
[367728437,1750906233031,-304.49699947,0.00017431,2]
[367728439,1750906233041,-419.4847544,0.00017495,2]
[367728441,1750906233052,-460.0,0.00017528,2]
[367728443,1750906233062,-460.0,0.00017528,2]
[367728445,1750906233071,-460.0,0.00017529,2]
[367728447,1750906233081,-460.0,0.00017529,2]
[367728449,1750906233091,-460.0,0.00017529,2]
[367728451,1750906233101,-545.06,0.00017529,2]
[367728453,1750906233111,-460.0,0.00017529,2]
[367728455,1750906233120,-460.0,0.00017529,2]
[367728457,1750906233130,-507.25,0.00017529,2]
[367728459,1750906233139,-460.0,0.0001753,2]
[367728461,1750906233150,-460.0,0.00017531,2]
[367728463,1750906233160,-460.0,0.00017531,2]
[367728465,1750906233171,-483.78,0.00017531,2]
[367728468,1750906233183,-460.0,0.00017802,2]
[367728470,1750906233197,-460.0,0.00017802,2]
[367728472,1750906233208,-460.0,0.00017803,2]
[367728474,1750906233217,-460.0,0.00017803,2]
[367728476,1750906233228,-460.0,0.00017803,2]
[367728478,1750906233238,-545.06,0.00017803,2]
[367728480,1750906233248,-477.3951983,0.00017803,2]
[367728482,1750906233257,-460.0,0.00017803,2]
[367728483,1750906233266,-507.25,0.00017803,2]
[367728486,1750906233276,-460.0,0.00017804,2]
[367728488,1750906233287,-460.0,0.00017805,2]
[367728490,1750906233296,-460.0,0.00017805,2]
[367728492,1750906233307,-483.78,0.00017805,2]
[367728493,1750906233316,-492.70765398,0.000179,2]
[367728496,1750906233326,-160.0,0.00018056,2]
[367728498,1750906233335,-160.0,0.00018056,2]
[367728500,1750906233345,-160.0,0.00018056,2]
[367728502,1750906233355,-846.92323443,0.00018056,2]
[367728503,1750906233365,-213.72380786,0.00018056,2]
[367728505,1750906233375,-160.0,0.00018056,2]
[367728507,1750906233384,-836.92866116,0.00018056,2]
[367728509,1750906233394,-425.22527846,0.00018056,2]
[367728511,1750906233403,-230.24506774,0.00018056,2]
[367728513,1750906233413,-160.0,0.00018056,2]
[367728515,1750906233422,-160.0,0.00018056,2]
[367728518,1750906233432,-160.0,0.00018056,2]
[367728519,1750906233442,-12560.17507789,0.00018056,2]
[367728522,1750906233452,-460.0,0.00018076,2]
[367728524,1750906233462,-561.45685629,0.00018076,2]
[367728526,1750906233472,-460.0,0.00018077,2]
[367728528,1750906233481,-460.0,0.00018077,2]
[367728530,1750906233491,-460.0,0.00018077,2]
[367728531,1750906233501,-545.06,0.00018077,2]
[367728533,1750906233510,-460.0,0.00018077,2]
[367728535,1750906233520,-507.25,0.00018077,2]
[367728537,1750906233529,-460.0,0.00018078,2]
[367728540,1750906233538,-404.25556708,0.00018079,2]
[367728541,1750906233548,-460.0,0.00018079,2]
[367728544,1750906233558,-483.78,0.00018079,2]
[367728546,1750906233568,-492.70765388,0.00018176,2]
[367728548,1750906233578,-166.0,0.00018254,2]
[367728550,1750906233587,-1200.0,0.00018344,2]
[367728552,1750906233596,-460.0,0.0001835,2]
[367728554,1750906233606,-460.0,0.00018351,2]
[367728556,1750906233615,-460.0,0.00018351,2]
[367728558,1750906233625,-460.0,0.00018351,2]
[367728560,1750906233634,-545.06,0.00018351,2]
[367728562,1750906233643,-460.0,0.00018351,2]
[367728564,1750906233652,-507.25,0.00018351,2]
[367728565,1750906233662,-460.0,0.00018352,2]
[367728566,1750906233672,-460.0,0.00018353,2]
[367728567,1750906233681,-483.78,0.00018353,2]
[367728568,1750906233691,-492.70765388,0.00018452,2]
[367728569,1750906233700,-500.0,0.00018458,2]
[367728570,1750906233709,-304.49699941,0.00018508,2]
[367728571,1750906233719,-460.0,0.00018624,2]
[367728572,1750906233729,-460.0,0.00018625,2]
[367728573,1750906233739,-460.0,0.00018625,2]
[367728574,1750906233748,-460.0,0.00018625,2]
[367728575,1750906233758,-545.06,0.00018625,2]
[367728576,1750906233767,-460.0,0.00018625,2]
[367728577,1750906233777,-507.25,0.00018625,2]
[367728578,1750906233786,-199.84152629,0.00018626,2]
[367728579,1750906233796,-460.0,0.00018627,2]
[367728580,1750906233805,-483.78,0.00018627,2]
[367728581,1750906233814,-492.70765388,0.00018728,2]
[367728582,1750906233823,-460.0,0.00018898,2]
[367728583,1750906233832,-460.0,0.00018899,2]
[367728584,1750906233842,-460.0,0.00018899,2]
[367728585,1750906233851,-460.0,0.00018899,2]
[367728586,1750906233861,-545.06,0.00018899,2]
[367728587,1750906233871,-460.0,0.00018899,2]
[367728588,1750906233880,-507.25,0.00018899,2]
[367728589,1750906233890,-460.0,0.00018901,2]
[367728590,1750906233900,-483.78,0.00018901,2]
[367728591,1750906233909,-492.70765388,0.00019003,2]
[367728592,1750906233919,-460.0,0.00019172,2]
[367728593,1750906233928,-507.82074132,0.00019172,2]
[367728594,1750906233938,-460.0,0.00019173,2]
[367728595,1750906233946,-460.0,0.00019173,2]
[367728596,1750906233955,-460.0,0.00019173,2]
[367728597,1750906233963,-545.06,0.00019173,2]
[367728598,1750906233971,-460.0,0.00019173,2]
[367728599,1750906233979,-507.25,0.00019173,2]
[367728600,1750906233989,-460.0,0.00019175,2]
[367728601,1750906233998,-483.78,0.00019175,2]
[367728602,1750906234008,-165.1568582,0.00019178,2]
[367728603,1750906234017,-373.288312,0.00019178,2]
[367728604,1750906234027,-758.7674914,0.00019233,2]
[367728605,1750906234037,-492.70765388,0.00019279,2]
[367728606,1750906234047,-240.7692209,0.00019315,2]
[367728607,1750906234056,-177.3437281,0.00019315,2]
[367728608,1750906234066,-181.57713698,0.00019367,2]
[367728609,1750906234076,-565.0,0.00019413,2]
[367728610,1750906234085,-460.0,0.00019446,2]
[367728611,1750906234096,-460.0,0.00019447,2]
[367728612,1750906234107,-460.0,0.00019447,2]
[367728613,1750906234260,-460.0,0.00019447,2]
[367728614,1750906234271,-545.06,0.00019447,2]
[367728615,1750906234281,-460.0,0.00019447,2]
[367728616,1750906234291,-507.25,0.00019447,2]
[367728617,1750906234301,-517.75025619,0.00019449,2]
[367728618,1750906234311,-483.78,0.00019449,2]
[367728619,1750906234321,-179.0,0.00019467,2]
[367728620,1750906234331,-961.680548,0.00019502,2]
[367728621,1750906234340,-179.0,0.00019504,2]
[367728622,1750906234350,-168.0,0.00019515,2]
[367728623,1750906234360,-179.0,0.00019516,2]
[367728624,1750906234370,-492.70765388,0.00019555,2]
[367728625,1750906234379,-304.49699941,0.00019584,2]
[367728626,1750906234389,-168.0,0.00019601,2]
[367728627,1750906234399,-168.0,0.00019653,2]
[367728628,1750906234408,-309.50193525,0.0001972,2]
[367728629,1750906234418,-460.0,0.00019721,2]
[367728630,1750906234427,-460.0,0.00019721,2]
[367728631,1750906234437,-460.0,0.00019721,2]
[367728632,1750906234446,-545.06,0.00019721,2]
[367728633,1750906234456,-460.0,0.00019721,2]
[367728634,1750906234466,-507.25,0.00019721,2]
[367728635,1750906234475,-483.78,0.00019723,2]
[367728636,1750906234485,-322.81665511,0.00019724,2]
[367728637,1750906234494,-179.0,0.00019784,2]
[367728638,1750906234504,-41465.063186,0.000198,2]
[367728639,1750906234513,-168.0,0.00019831,2]
[367728640,1750906234523,-492.70765388,0.00019831,2]
[367728641,1750906234533,-168.0,0.00019885,2]
[367728642,1750906234542,-9180.07472388,0.000199,7]
[367728649,1750906238329,-435.51075284,0.000199,7]
[367728650,1750906238340,-357.00060202,0.000199,7]
[367728679,1750906240579,-802.55400104,0.000199,7]
[367730166,1750907024915,292.4771269,0.00025059,120]
[367730173,1750907356386,492.733789,0.00013699,2]
[367730227,1750907432556,-301.43630465,0.00016706,2]
[367730232,1750907432573,-300.0,0.00016792,2]
[367730236,1750907432592,-460.0,0.00016793,2]
[367730238,1750907432606,-12649.00237069,0.00016793,2]
[367730700,1750907438815,-175.65421242,0.00016793,2]
[367730702,1750907438829,-460.0,0.00016793,2]
[367730704,1750907438839,-762.42267067,0.00016793,2]
[367731824,1750907705009,1200.0,0.00023,30]
[367731825,1750908065600,438.9314,0.00025059,60]
[367731919,1750908433145,468.097099,0.00013699,2]
[367732190,1750908638796,-168.0,0.00016717,2]
[367732192,1750908638805,-300.0,0.00016717,2]
[367732193,1750908638815,-1200.0,0.00016717,2]
[367732194,1750908638825,-306.0,0.00016718,2]
[367732195,1750908638834,-463.92278916,0.00016718,2]
[367732196,1750908638844,-460.0,0.00016718,2]
[367732197,1750908638853,-157.39256765,0.00016718,2]
[367732198,1750908638863,-460.0,0.00016718,2]
[367732199,1750908638872,-461.96555926,0.00016718,2]
[367732200,1750908638881,-460.0,0.00016718,2]
[367732201,1750908638891,-570.46103929,0.00016718,2]
[367732202,1750908638903,-460.0,0.00016718,2]
[367732203,1750908638915,-566.73922501,0.00016718,2]
[367732204,1750908638924,-457.46717596,0.00016718,2]
[367732205,1750908638936,-2.53282404,0.00016718,2]
[367732206,1750908638946,-969.36557473,0.00016718,2]
[367732207,1750908638955,-57.93914324,0.00016719,2]
[367732208,1750908638971,-24842.06085676,0.00016719,2]
[367732209,1750908638980,-175.98546588,0.00016992,2]
[367732210,1750908638990,-460.0,0.00016992,2]
[367732211,1750908638999,-460.0,0.00017266,2]
[367732212,1750908639010,-460.0,0.0001734,2]
[367732213,1750908639019,-460.0,0.0001734,2]
[367732214,1750908639030,-460.0,0.0001754,2]
[367732215,1750908639039,-460.0,0.00017614,2]
[367732216,1750908639049,-460.0,0.00017614,2]
[367732217,1750908639059,-476.0372211,0.00017614,2]
[367732218,1750908639068,-462.3735172,0.00017614,2]
[367732219,1750908639078,-481.09073413,0.00017614,2]
[367732220,1750908639087,-462.20184263,0.00017614,2]
[367732221,1750908639097,-460.0,0.00017798,2]
[367732222,1750908639107,-553.28249802,0.00017798,2]
[367732223,1750908639116,-460.0,0.00017798,2]
[367732224,1750908639125,-460.0,0.00017798,2]
[367732225,1750908639135,-460.0,0.00017798,2]
[367732226,1750908639144,-460.0,0.00017798,2]
[367732227,1750908639153,-460.0,0.00017798,2]
[367732228,1750908639164,-215.57,0.00017799,2]
[367732229,1750908639174,-460.0,0.00017799,2]
[367732230,1750908639183,-460.0,0.00017799,2]
[367732231,1750908639193,-579.76598164,0.00017799,2]
[367732232,1750908639202,-460.0,0.00017799,2]
[367732233,1750908639211,-508.1117437,0.00017799,2]
[367732234,1750908639220,-460.0,0.00017799,2]
[367732235,1750908639230,-460.0,0.00017799,2]
[367732236,1750908639239,-529.87296196,0.000178,2]
[367732237,1750908639248,-460.0,0.000178,2]
[367732238,1750908639258,-513.68078513,0.000178,2]
[367732239,1750908639267,-460.0,0.000178,2]
[367732240,1750908639277,-342.54926142,0.00017801,2]
[367732241,1750908639286,-460.0,0.00017801,2]
[367732242,1750908639295,-460.0,0.00017801,2]
[367732243,1750908639305,-460.0,0.00017801,2]
[367732244,1750908639315,-467.46380891,0.00017801,2]
[367732245,1750908639326,-460.0,0.00017888,2]
[367732246,1750908639335,-460.0,0.00017888,2]
[367732247,1750908639345,-534.87681127,0.000179,2]
[367732248,1750908639354,-319.5923591,0.000179,2]
[367732249,1750908639363,-9268.75183802,0.00018,2]
[367732250,1750908639372,-1669.63589062,0.00018,2]
[367732251,1750908639389,-535.80096108,0.00018,2]
[367732252,1750908639399,-191.34495194,0.00018071,2]
[367732253,1750908639410,-460.0,0.00018071,2]
[367732254,1750908639419,-160.0,0.00018071,2]
[367732255,1750908639428,-160.0,0.00018071,2]
[367732256,1750908639438,-160.0,0.00018071,2]
[367732257,1750908639449,-846.92323443,0.00018071,2]
[367732258,1750908639459,-425.22527846,0.00018071,2]
[367732259,1750908639468,-836.92866116,0.00018071,2]
[367732260,1750908639478,-213.72380786,0.00018071,2]
[367732261,1750908639488,-70.4095359,0.00018071,2]
[367732262,1750908639499,-89.5904641,0.00018071,2]
[367732263,1750908639509,-160.0,0.00018071,2]
[367732264,1750908639518,-3628.05502682,0.00018071,2]
[367732265,1750908639529,-8932.12005107,0.00018071,2]
[367732266,1750908639539,-230.24506774,0.00018071,2]
[367732267,1750908639549,-160.0,0.00018071,2]
[367732268,1750908639559,-460.0,0.00018072,2]
[367732269,1750908639568,-460.0,0.00018072,2]
[367732270,1750908639578,-460.0,0.00018072,2]
[367732271,1750908639587,-347.70339752,0.00018073,2]
[367732272,1750908639597,-460.0,0.00018073,2]
[367732273,1750908639607,-460.0,0.00018073,2]
[367732274,1750908639616,-460.0,0.00018074,2]
[367732275,1750908639626,-460.0,0.00018075,2]
[367732276,1750908639636,-460.0,0.00018075,2]
[367732277,1750908639646,-460.0,0.00018075,2]
[367732278,1750908639656,-151.0,0.0001814,2]
[367732279,1750908639668,-151.0,0.0001814,2]
[367732280,1750908639677,-151.0,0.0001814,2]
[367732281,1750908639686,-273.74990888,0.0001814,2]
[367732282,1750908639697,-207.4,0.0001814,2]
[367732283,1750908639707,-154.30026337,0.0001814,2]
[367732284,1750908639717,-151.0,0.0001814,2]
[367732285,1750908639727,-388.0,0.0001814,2]
[367732286,1750908639736,-5000.0,0.0001814,2]
[367732287,1750908639746,-151.0,0.0001814,2]
[367732288,1750908639756,-500.0,0.0001814,2]
[367732289,1750908639766,-151.0,0.0001814,2]
[367732290,1750908639775,-500.0,0.0001814,2]
[367732291,1750908639784,-151.27597907,0.0001814,2]
[367732292,1750908639794,-151.0,0.0001814,2]
[367732293,1750908639803,-151.0,0.0001814,2]
[367732294,1750908639814,-500.0,0.0001814,2]
[367732295,1750908639824,-500.0,0.0001814,2]
[367732296,1750908639834,-151.0,0.0001814,2]
[367732297,1750908639843,-151.0,0.0001814,2]
[367732298,1750908639853,-500.0,0.0001814,2]
[367732299,1750908639862,-151.0,0.0001814,2]
[367732300,1750908639872,-500.0,0.0001814,2]
[367732301,1750908639881,-151.0,0.0001814,2]
[367732302,1750908640051,-2438.02774712,0.0001814,2]
[367732303,1750908640063,-500.0,0.0001814,2]
[367732304,1750908640073,-151.0,0.0001814,2]
[367732305,1750908640082,-500.0,0.0001814,2]
[367732306,1750908640093,-151.0,0.0001814,2]
[367732307,1750908640104,-500.0,0.0001814,2]
[367732308,1750908640115,-151.0,0.0001814,2]
[367732309,1750908640124,-151.0,0.0001814,2]
[367732310,1750908640133,-500.0,0.0001814,2]
[367732311,1750908640143,-500.0,0.0001814,2]
[367732312,1750908640152,-151.0,0.0001814,2]
[367732313,1750908640163,-151.0,0.0001814,2]
[367732314,1750908640172,-500.0,0.0001814,2]